bitfinex/quotes_BTCUSD_20230405
["timestamp","ask_amount","ask_price","bid_price","bid_amount"]
[1680703954022,0.014572,28097.0,28096.0,0.00787627]
[1680703954247,0.015277,28098.0,28096.0,0.36258683]
[1680703954465,0.015277,28098.0,28097.0,0.35471056]
[1680703954679,0.015277,28098.0,28096.0,0.00793627]
[1680703954927,0.015277,28098.0,28096.0,0.00787627]
[1680703955150,0.35471056,28097.0,28096.0,0.00787627]
[1680703955376,1.20657937,28097.0,28096.0,0.00787627]
[1680703955595,1.2534095,28097.0,28096.0,0.00787627]
[1680703955815,1.05044656,28097.0,28096.0,0.00787627]
[1680703956031,0.695736,28097.0,28096.0,0.00787627]
[1680703956496,0.24980167,28104.0,28096.0,0.45359265]
[1680703956722,3.178,28109.0,28098.0,0.53507]
[1680703956940,0.00015,28105.0,28103.0,0.67278056]
[1680703957147,0.3724,28127.0,28104.0,0.34204125]
[1680703957148,0.0003,28110.0,28104.0,0.34204125]
[1680703957365,0.014223,28122.0,28105.0,0.18246182]
[1680703957594,0.014223,28122.0,28105.0,0.23457582]
[1680703957595,0.2807,28122.0,28105.0,0.23457582]
[1680703957832,0.49660737,28121.0,28106.0,1.00981056]
[1680703958054,0.01105,28120.0,28107.0,0.09100582]
[1680703958270,0.49660737,28119.0,28108.0,0.35471056]
[1680703958482,0.36271556,28118.0,28109.0,0.09100582]
[1680703958723,0.010543,28117.0,28109.0,0.44571638]
[1680703958946,0.010543,28117.0,28109.0,0.09100582]
[1680703959157,0.07448211,28130.0,28110.0,0.01547125]
[1680703959158,0.0003,28121.0,28110.0,0.01547125]
[1680703959377,0.295821,28126.0,28110.0,0.01547125]
[1680703959378,0.0003,28124.0,28110.0,0.37057125]
[1680703959586,0.0003,28124.0,28111.0,0.54571638]
[1680703959587,0.14189681,28123.0,28111.0,0.54571638]
[1680703959794,0.14219681,28123.0,28112.0,0.0085]
[1680703960013,0.14189681,28123.0,28113.0,0.09100582]
[1680703960223,0.14219681,28123.0,28114.0,0.0085]
[1680703960438,0.371,28137.0,28114.0,0.0085]
[1680703960439,0.17773,28132.0,28120.0,0.4]
[1680703960677,0.2829,28135.0,28129.0,0.40407]
[1680703960678,0.00021,28135.0,28129.0,0.40407]
[1680703960888,0.00021,28152.0,28131.0,0.31807]
[1680703961108,0.03703633,28146.0,28135.0,0.09100582]
[1680703961361,0.03703633,28146.0,28135.0,0.09118582]
[1680703961613,0.36471456,28145.0,28135.0,0.44628582]
[1680703961825,0.283,28142.0,28135.0,0.09118582]
[1680703962050,0.35471056,28140.0,28135.0,0.00018]
[1680703962269,0.35471056,28136.0,28125.0,0.00018]
[1680703962489,0.35471056,28132.0,28122.0,0.00018]
[1680703962736,0.20569167,28131.0,28122.0,0.00018]
[1680703962969,0.20569167,28131.0,28123.0,0.35471056]
[1680703962970,0.009925,28130.0,28123.0,0.35471056]
[1680703963177,0.14189681,28129.0,28123.0,0.44589638]
[1680703963389,0.49202814,28139.0,28123.0,0.44589638]
[1680703963390,0.00021,28137.0,28124.0,0.1]
[1680703963601,0.37411,28145.0,28127.0,0.35471056]
[1680703963827,0.39150311,28145.0,28127.0,0.35489056]
[1680703964047,0.17771,28136.0,28128.0,0.09100582]
[1680703964274,0.72371056,28137.0,28128.0,0.09100582]
[1680703964275,0.50462837,28135.0,28128.0,0.3551]
[1680703964488,0.010315,28134.0,28126.0,0.00018]
[1680703964702,0.14189681,28133.0,28126.0,0.35471056]
[1680703964912,0.14189681,28133.0,28126.0,0.00012]
[1680703964913,0.00874,28132.0,28126.0,0.00012]
[1680703965156,0.14189681,28131.0,28123.0,0.00012]
[1680703965371,0.010026,28130.0,28123.0,0.35489056]
[1680703965599,0.010026,28130.0,28123.0,0.00018]
[1680703965600,0.14189681,28129.0,28123.0,0.00018]
[1680703965810,0.009029,28128.0,28123.0,0.00018]
[1680703966034,0.14189681,28127.0,28119.0,0.028613]
[1680703966249,0.009818,28126.0,28119.0,0.028613]
[1680703966488,0.009818,28126.0,28119.0,0.028433]
[1680703966690,0.15171481,28126.0,28120.0,0.35471056]
[1680703966920,0.009029,28125.0,28120.0,0.44605038]
[1680703967136,0.009029,28125.0,28120.0,0.00018]
[1680703967347,0.009029,28125.0,28119.0,0.028433]
[1680703967348,0.14189681,28125.0,28119.0,0.028433]
[1680703967561,0.009029,28124.0,28119.0,0.38314356]
[1680703967788,0.60232,28135.0,28120.0,0.70981056]
[1680703967789,0.50642537,28134.0,28120.0,0.70981056]
[1680703968002,0.009029,28133.0,28121.0,0.09121982]
[1680703968219,0.15092581,28133.0,28122.0,0.00697125]
[1680703968426,0.009818,28132.0,28123.0,0.44593038]
[1680703968629,0.14189681,28132.0,28123.0,0.44593038]
[1680703968844,0.014215,28139.0,28127.0,0.35471056]
[1680703968845,0.00021,28134.0,28127.0,0.35471056]
[1680703969058,0.00021,28141.0,28128.0,0.45443038]
[1680703969266,0.110356,28143.0,28129.0,0.3962]
[1680703969496,0.008701,28142.0,28131.0,0.35471056]
[1680703969679,0.022915,28142.0,28132.0,0.09121982]
[1680703969886,0.15190581,28141.0,28132.0,0.09121982]
[1680703970093,0.15190581,28141.0,28120.0,0.2278]
[1680703970094,0.464045,28139.0,28127.0,0.00018]
[1680703970338,0.5,28136.0,28127.0,0.09121982]
[1680703970516,0.042653,28134.0,28122.0,0.10018]
[1680703970731,0.042653,28134.0,28123.0,0.36168181]
[1680703970732,0.15190581,28133.0,28123.0,0.36168181]
[1680703970931,0.15190581,28133.0,28125.0,0.35471056]
[1680703970932,0.008838,28132.0,28125.0,0.35471056]
[1680703971137,0.008838,28132.0,28125.0,0.44593038]
[1680703971138,0.14189681,28132.0,28125.0,0.44593038]
[1680703971357,0.14189681,28132.0,28126.0,1.2]
[1680703971622,0.1,28143.0,28129.0,0.35471056]
[1680703971623,6e-05,28137.0,28129.0,0.35471056]
[1680703971848,0.028428,28141.0,28129.0,0.35471056]
[1680703972053,0.50527637,28140.0,28130.0,0.09121982]
[1680703972259,0.110178,28139.0,28130.0,0.09121982]
[1680703972464,0.36337956,28138.0,28130.0,0.09121982]
[1680703972670,0.010178,28137.0,28131.0,0.36168181]
[1680703972886,0.008879,28142.0,28132.0,0.0085]
[1680703973088,0.35471056,28141.0,28132.0,0.09121982]
[1680703973315,0.15056581,28140.0,28133.0,0.09121982]
[1680703973524,0.35492056,28141.0,28128.0,0.00018]
[1680703973525,0.010178,28139.0,28128.0,0.00018]
[1680703973730,0.14189681,28138.0,28129.0,0.44593038]
[1680703973947,0.17764,28146.0,28129.0,0.44611038]
[1680703973948,0.14189681,28137.0,28129.0,0.44611038]
[1680703974163,0.17764,28146.0,28129.0,0.35489056]
[1680703974164,0.14189681,28136.0,28129.0,0.35489056]
[1680703974367,0.14189681,28135.0,28130.0,0.0085]
[1680703974579,0.010338,28134.0,28130.0,0.01547125]
[1680703974782,0.014216,28137.0,28130.0,0.36321056]
[1680703975032,0.010338,28136.0,28129.0,0.00012]
[1680703975238,0.010338,28136.0,28127.0,0.00098289]
[1680703975239,0.099522,28134.0,28127.0,0.00098289]
[1680703975469,0.099522,28134.0,28120.0,0.3551]
[1680703975470,0.008509,28133.0,28120.0,0.3551]
[1680703975676,0.014219,28131.0,28121.0,0.35471056]
[1680703975887,0.15203481,28130.0,28121.0,0.00018]
[1680703976094,0.042662,28128.0,28120.0,0.00018]
[1680703976304,0.010138,28127.0,28119.0,0.0294145]
[1680703976510,0.014221,28126.0,28119.0,0.0295945]
[1680703976740,0.008709,28125.0,28119.0,0.028433]
[1680703976945,0.14189681,28124.0,28119.0,0.028433]
[1680703977192,0.010004,28123.0,28119.0,0.38314356]
[1680703977405,0.010004,28123.0,28120.0,0.35471056]
[1680703977614,0.01422,28129.0,28120.0,0.35471056]
[1680703977821,0.010211,28128.0,28121.0,0.09121982]
[1680703978098,0.010211,28128.0,28122.0,0.35471056]
[1680703978307,0.010574,28130.0,28123.0,0.19121982]
[1680703978520,0.39571,28132.0,28125.0,0.1]
[1680703978725,0.010385,28131.0,28126.0,0.09121982]
[1680703978933,0.008462,28133.0,28126.0,0.09139982]
[1680703979145,0.007145,28132.0,28126.0,0.09139982]
[1680703979369,0.007145,28132.0,28126.0,0.44611038]
[1680703979587,0.007145,28132.0,28127.0,0.36321056]
[1680703979588,3.178,28131.0,28127.0,0.36321056]
[1680703979813,3.178,28131.0,28127.0,0.36339056]
[1680703980224,3.178,28131.0,28127.0,0.00018]
[1680703980443,0.007145,28132.0,28128.0,0.35471056]
[1680703980655,0.007145,28132.0,28129.0,0.0085]
[1680703980866,0.007145,28132.0,28130.0,0.35471056]
[1680703981100,0.007145,28132.0,28130.0,0.35489056]
[1680703981528,0.00015,28138.0,28131.0,0.09971982]
[1680703981735,0.028423,28146.0,28132.0,0.35471056]
[1680703981961,0.35471056,28145.0,28133.0,0.14257482]
[1680703982168,0.014213,28144.0,28135.0,0.1]
[1680703982378,0.014273,28144.0,28136.0,0.49728538]
[1680703982591,0.00021,28146.0,28136.0,0.49728538]
[1680703982807,0.00021,28150.0,28136.0,0.85238538]
[1680703983018,0.14189681,28149.0,28138.0,0.35471056]
[1680703983238,0.15631681,28149.0,28139.0,0.24257482]
[1680703983444,0.15631681,28149.0,28140.0,0.35471056]
[1680703983445,0.14210681,28149.0,28140.0,0.35471056]
[1680703983657,0.14210681,28149.0,28141.0,0.14257482]
[1680703983868,0.00021,28149.0,28142.0,0.35471056]
[1680703984083,0.15610681,28149.0,28143.0,0.13407482]
[1680703984298,0.01442,28149.0,28143.0,0.13407482]
[1680703984537,0.00021,28150.0,28144.0,0.0085]
[1680703984791,0.01421,28150.0,28144.0,0.0085]
[1680703984997,0.01421,28150.0,28140.0,0.00018]
[1680703984998,0.54352007,28150.0,28140.0,0.00018]
[1680703985197,0.54373007,28150.0,28139.0,0.00099375]
[1680703985410,0.49660737,28149.0,28140.0,0.13407482]
[1680703985613,0.15631681,28149.0,28140.0,0.48878538]
[1680703985847,0.15631681,28149.0,28140.0,0.48977192]
[1680703986667,0.15631681,28149.0,28141.0,0.0085]
[1680703986874,0.15631681,28149.0,28142.0,0.13407482]
[1680703987130,0.15631681,28149.0,28142.0,0.48878538]
[1680703987352,0.35471056,28144.0,28140.0,0.00116654]
[1680703987552,0.1,28142.0,28135.0,0.3551]
[1680703987763,0.1,28142.0,28122.0,0.1]
[1680703987764,0.17772,28136.0,28134.0,0.00018]
[1680703987975,0.674989,28135.0,28123.0,0.00018]
[1680703988183,1.17159637,28135.0,28123.0,0.35489056]
[1680703988398,1.17159637,28135.0,28124.0,0.35471056]
[1680703988617,1.17159637,28135.0,28124.0,0.35489056]
[1680703988822,0.72371056,28132.0,28124.0,0.00018]
[1680703989028,0.042658,28130.0,28122.0,0.35522]
[1680703989234,0.49660737,28129.0,28122.0,0.00018]
[1680703989443,0.014221,28127.0,28122.0,0.00018]
[1680703989651,0.14189681,28126.0,28122.0,0.00018]
[1680703989875,0.57547,28131.0,28123.0,0.35471056]
[1680703990084,0.73158581,28131.0,28124.0,0.13407482]
[1680703990292,0.57547,28131.0,28125.0,0.35471056]
[1680703990505,0.35471056,28130.0,28125.0,0.13425482]
[1680703990708,0.60391,28129.0,28125.0,6e-05]
[1680703990951,0.60391,28129.0,28119.0,0.028613]
[1680703991159,0.14189681,28128.0,28121.0,0.35471056]
[1680703991365,0.014221,28127.0,28121.0,0.35489056]
[1680703991573,0.14189681,28127.0,28121.0,0.35489056]
[1680703991780,0.14189681,28127.0,28121.0,0.48896538]
[1680703991989,0.14189681,28127.0,28122.0,0.0085]
[1680703992224,0.57547,28129.0,28122.0,0.10868]
[1680703992452,3.192221,28128.0,28122.0,0.13425482]
[1680703992655,3.178,28128.0,28122.0,0.48878538]
[1680703992868,3.31989681,28128.0,28122.0,0.48896538]
[1680703993522,3.31989681,28128.0,28122.0,0.35489056]
[1680703993721,3.31989681,28128.0,28123.0,0.36321056]
[1680703993936,3.178,28128.0,28123.0,0.36339056]
[1680703994346,3.31989681,28128.0,28123.0,0.00018]
[1680703994562,3.178,28128.0,28120.0,0.00018]
[1680703994773,0.14189681,28127.0,28124.0,0.35471056]
[1680703994983,3.178,28128.0,28124.0,0.35489056]
[1680703995195,3.178,28128.0,28124.0,0.00018]
[1680703995399,3.178,28128.0,28124.0,0.35471056]
[1680703995605,0.57568,28129.0,28125.0,0.35471056]
[1680703995806,0.57547,28129.0,28125.0,0.35483056]
[1680703996011,0.57547,28129.0,28126.0,0.0085]
[1680703996213,0.57547,28129.0,28125.0,0.35483056]
[1680703996431,0.57547,28129.0,28125.0,0.00012]
[1680703996584,0.57547,28129.0,28122.0,0.04357]
[1680703996787,0.14189681,28128.0,28123.0,0.35471056]
[1680703996990,0.57547,28129.0,28123.0,0.35489056]
[1680703997192,0.57547,28129.0,28123.0,0.48896538]
[1680703997393,0.57547,28129.0,28124.0,0.0085]
[1680703997617,0.57547,28129.0,28125.0,0.48878538]
[1680703997818,0.57547,28129.0,28126.0,0.36321056]
[1680703998019,0.56849875,28129.0,28128.0,0.1]
[1680703998224,0.56849875,28129.0,28128.0,0.46321056]
[1680703998421,0.56849875,28129.0,28128.0,0.76339056]
[1680703998646,0.56849875,28129.0,28128.0,1.11849056]
[1680703998854,0.56849875,28129.0,28128.0,0.80993056]
[1680703999028,0.56849875,28129.0,28128.0,0.75350056]
[1680703999226,0.56870875,28129.0,28128.0,0.75338056]
[1680703999636,0.06849875,28129.0,28128.0,0.75356056]
[1680703999827,0.06849875,28129.0,28128.0,0.81080856]
[1680704000295,0.06849875,28129.0,28128.0,1.11080856]
[1680704000735,0.06849875,28129.0,28128.0,0.81092856]
[1680704000942,0.06849875,28129.0,28128.0,0.75356056]
[1680704001185,0.06849875,28129.0,28128.0,0.75338056]
[1680704001584,0.06849875,28129.0,28128.0,1.10870356]
[1680704002556,0.06849875,28129.0,28128.0,1.10882356]
[1680704002767,0.06849875,28129.0,28128.0,1.12642667]
[1680704003160,0.06849875,28129.0,28128.0,1.10882356]
[1680704003390,0.06849875,28129.0,28128.0,1.05350056]
[1680704003792,0.06849875,28129.0,28128.0,1.11014156]
[1680704004258,0.21039556,28129.0,28128.0,0.70981056]
[1680704004502,0.22461556,28129.0,28128.0,0.00018]
[1680704004732,0.08271875,28129.0,28123.0,0.00018]
[1680704004964,0.08271875,28129.0,28122.0,0.35471056]
[1680704004965,0.14189681,28128.0,28122.0,0.35471056]
[1680704005193,0.042664,28127.0,28120.0,0.00018]
[1680704005416,0.042664,28127.0,28117.0,0.08440537]
[1680704005417,0.49660737,28126.0,28117.0,0.08440537]
[1680704005660,0.49660737,28126.0,28118.0,0.35471056]
[1680704005661,0.06849875,28125.0,28118.0,0.35471056]
[1680704005902,0.14189681,28124.0,28118.0,0.35471056]
[1680704006135,0.14189681,28124.0,28119.0,0.1]
[1680704006361,0.06849875,28125.0,28120.0,0.35471056]
[1680704006572,0.06849875,28125.0,28120.0,0.48878538]
[1680704007015,0.06849875,28125.0,28121.0,0.58878538]
[1680704007236,0.06849875,28125.0,28122.0,0.054594]
[1680704007478,0.06849875,28125.0,28123.0,0.0085]
[1680704007703,0.06849875,28125.0,28124.0,0.051169]
[1680704007930,0.028428,28141.0,28125.0,0.1]
[1680704007931,0.00021,28137.0,28125.0,0.1]
[1680704008159,0.3695,28140.0,28129.0,0.35471056]
[1680704008374,0.3695,28140.0,28130.0,0.13407482]
[1680704008375,0.0528174,28140.0,28130.0,0.13407482]
[1680704008593,0.00021,28140.0,28130.0,0.14257482]
[1680704009282,0.14210681,28140.0,28131.0,0.35471056]
[1680704009494,0.15632081,28140.0,28132.0,0.14257482]
[1680704009701,0.15632081,28140.0,28133.0,0.35471056]
[1680704009916,0.00021,28140.0,28134.0,0.24257482]
[1680704010171,0.00021,28140.0,28135.0,0.35471056]
[1680704010394,0.014424,28140.0,28134.0,0.0085]
[1680704010606,0.15611081,28140.0,28134.0,0.13407482]
[1680704010823,0.15632081,28140.0,28134.0,0.13407482]
[1680704011040,0.15632081,28140.0,28132.0,0.03507]
[1680704011250,0.14189681,28139.0,28132.0,0.48878538]
[1680704011474,0.00021,28139.0,28133.0,0.49728538]
[1680704011725,0.00021,28142.0,28134.0,0.13407482]
[1680704011959,0.00021,28142.0,28135.0,0.0085]
[1680704012413,0.00021,28142.0,28136.0,0.3551]
[1680704012618,0.00021,28142.0,28137.0,0.0085]
[1680704012805,0.00021,28143.0,28137.0,0.0085]
[1680704013077,0.014213,28142.0,28138.0,0.35471056]
[1680704013311,0.014423,28142.0,28133.0,0.03525]
[1680704013517,0.14189681,28141.0,28134.0,0.36321056]
[1680704013725,0.014215,28139.0,28134.0,0.36321056]
[1680704013942,0.15611181,28139.0,28134.0,0.36321056]
[1680704014159,0.14210681,28139.0,28134.0,0.36321056]
[1680704014570,0.014424,28140.0,28134.0,0.36321056]
[1680704014777,0.14189681,28140.0,28134.0,0.49728538]
[1680704014983,0.14210681,28140.0,28134.0,0.49728538]
[1680704015405,0.00021,28140.0,28134.0,0.49728538]
[1680704015592,0.14189681,28140.0,28134.0,0.85238538]
[1680704015826,0.14210681,28140.0,28134.0,0.85238538]
[1680704016232,0.00021,28140.0,28134.0,0.85238538]
[1680704016439,0.15611081,28140.0,28134.0,0.85238538]
[1680704016647,0.14210681,28140.0,28134.0,0.85238538]
[1680704016857,0.00021,28140.0,28134.0,0.49728538]
[1680704017006,0.14189681,28140.0,28135.0,0.3551]
[1680704017215,0.00021,28140.0,28136.0,0.35471056]
[1680704017418,0.00021,28143.0,28137.0,0.0085]
[1680704017619,0.014214,28141.0,28137.0,0.0085]
[1680704017824,0.00021,28143.0,28138.0,0.35471056]
[1680704017975,0.014214,28141.0,28138.0,0.48878538]
[1680704018181,0.014214,28141.0,28138.0,0.35471056]
[1680704018395,0.39205,28147.0,28139.0,0.0085]
[1680704018600,0.3919,28147.0,28140.0,0.48878538]
[1680704018807,0.3919,28147.0,28140.0,0.48890538]
[1680704019059,0.08461721,28143.0,28140.0,0.48896538]
[1680704019258,0.65963782,28146.0,28141.0,0.0085]
[1680704019259,0.00021,28146.0,28141.0,0.0085]
[1680704019463,0.014211,28146.0,28142.0,0.48878538]
[1680704019662,0.014211,28146.0,28143.0,0.0085]
[1680704019834,0.014211,28146.0,28144.0,0.35471056]
[1680704020038,0.014211,28146.0,28144.0,0.35489056]
[1680704020291,0.014211,28146.0,28144.0,0.00018]
[1680704020509,0.014211,28146.0,28140.0,0.3551]
[1680704020510,0.014211,28146.0,28141.0,0.00018]
[1680704020715,0.014211,28146.0,28143.0,0.35471056]
[1680704020716,0.14189681,28146.0,28143.0,0.35471056]
[1680704020899,3.178,28148.0,28143.0,0.00018]
[1680704021126,3.178,28148.0,28138.0,0.39017]
[1680704021127,3.178,28148.0,28144.0,0.48878538]
[1680704021310,0.02743429,28145.0,28144.0,0.00018]
[1680704021535,0.02743429,28145.0,28139.0,0.00012]
[1680704021536,0.04164629,28145.0,28139.0,0.00012]
[1680704021721,0.03664629,28145.0,28139.0,0.00862]
[1680704021921,0.02243429,28145.0,28139.0,0.00868]
[1680704022144,0.02243429,28145.0,28140.0,0.70981056]
[1680704022145,0.1643311,28145.0,28140.0,0.70981056]
[1680704022357,0.014211,28147.0,28141.0,0.0085]
[1680704022491,0.028422,28147.0,28141.0,0.13407482]
[1680704022696,0.1,28145.0,28141.0,0.00012]
[1680704022911,3.36253381,28144.0,28138.0,0.00018]
[1680704023149,3.36253381,28144.0,28132.0,0.3551]
[1680704023352,3.36253381,28144.0,28132.0,0.00018]
[1680704023353,0.3864,28143.0,28132.0,0.00018]
[1680704023552,0.042643,28140.0,28134.0,0.3551]
[1680704023782,0.14189681,28139.0,28135.0,0.35471056]
[1680704024148,0.014215,28139.0,28135.0,0.35483056]
[1680704024335,0.014215,28139.0,28135.0,0.35471056]
[1680704024890,0.014215,28139.0,28136.0,0.0085]
[1680704025108,0.028429,28140.0,28136.0,0.0085]
[1680704025109,3.17821,28142.0,28137.0,0.35471056]
[1680704025339,3.206637,28142.0,28138.0,0.14257482]
[1680704025596,3.206637,28142.0,28139.0,0.35471056]
[1680704025750,3.206637,28142.0,28140.0,0.0085]
[1680704026109,3.206637,28142.0,28140.0,0.36321056]
[1680704026244,3.17821,28142.0,28140.0,0.36321056]
[1680704027215,3.17821,28142.0,28141.0,0.35471056]
[1680704027358,3.178,28142.0,28141.0,0.36333056]
[1680704027935,3.178,28142.0,28141.0,0.36339056]
[1680704028583,3.178,28142.0,28141.0,0.35489056]
[1680704028805,3.192423,28142.0,28140.0,0.00018]
[1680704029027,3.192423,28142.0,28132.0,0.35483056]
[1680704029028,0.06373,28141.0,28132.0,0.35483056]
[1680704029296,0.014215,28138.0,28132.0,0.35489056]
[1680704029568,0.20562681,28137.0,28133.0,0.03507]
[1680704029779,0.20562681,28137.0,28134.0,0.35471056]
[1680704029994,0.06373,28137.0,28135.0,0.35471056]
[1680704030212,0.06373,28137.0,28135.0,0.35489056]
[1680704030420,0.06373,28137.0,28136.0,0.35471056]
[1680704030629,0.04443,28137.0,28136.0,1.00981056]
[1680704030857,0.04443,28137.0,28136.0,1.06284956]
[1680704031070,0.02631857,28137.0,28136.0,1.09791956]
[1680704031279,0.02631857,28137.0,28136.0,1.10641956]
[1680704031519,0.02631857,28137.0,28136.0,1.05338056]
[1680704031788,0.02631857,28137.0,28136.0,1.10677156]
[1680704031980,0.02631857,28137.0,28136.0,1.10724956]
[1680704032211,0.02631857,28137.0,28136.0,1.10909056]
[1680704033736,3.17821,28140.0,28139.0,1.13507]
[1680704033954,0.00021,28140.0,28139.0,1.68062438]
[1680704034162,1.9868,28147.0,28143.0,0.03486]
[1680704034379,0.00021,28147.0,28144.0,0.52364538]
[1680704034610,0.02397001,28149.0,28145.0,0.65471056]
[1680704034820,0.02397001,28149.0,28146.0,0.52364538]
[1680704035232,0.02397001,28149.0,28147.0,0.3551]
[1680704035441,0.02397001,28149.0,28147.0,0.74467056]
[1680704035696,0.02397001,28149.0,28148.0,0.38957056]
[1680704035936,0.02397001,28149.0,28148.0,0.75317056]
[1680704036189,0.02397001,28149.0,28148.0,1.25624538]
[1680704036405,3.178,28150.0,28149.0,0.13486]
[1680704036406,0.00021,28150.0,28149.0,0.13486]
[1680704036615,6e-05,28153.0,28152.0,1.1]
[1680704036821,0.02376001,28154.0,28153.0,0.03486]
[1680704037034,0.02376001,28154.0,28153.0,1.19264538]
[1680704037250,0.02376001,28154.0,28153.0,1.41385056]
[1680704037461,0.02376001,28154.0,28153.0,1.59144056]
[1680704037666,0.02376001,28154.0,28153.0,1.69144056]
[1680704037888,0.01806001,28154.0,28153.0,1.69132056]
[1680704038091,0.01806001,28154.0,28153.0,1.69126056]
[1680704038297,0.05025148,28157.0,28156.0,0.13486]
[1680704038534,0.05025148,28157.0,28156.0,0.78957056]
[1680704038743,0.05025148,28157.0,28156.0,1.14467056]
[1680704038961,0.05025148,28157.0,28156.0,1.51367056]
[1680704039170,0.05025148,28157.0,28156.0,1.91367056]
[1680704039383,0.05025148,28157.0,28156.0,1.91379056]
[1680704039584,0.04455148,28157.0,28156.0,2.31367056]
[1680704039789,5.49e-06,28158.0,28157.0,0.50386]
[1680704040007,5.49e-06,28158.0,28157.0,1.33612056]
[1680704040232,5.49e-06,28158.0,28157.0,1.79637056]
[1680704040457,0.15068582,28178.0,28167.0,0.4]
[1680704040690,0.00021,28173.0,28167.0,0.52364538]
[1680704040898,0.02397001,28174.0,28167.0,0.87874538]
[1680704041132,0.02376001,28174.0,28167.0,0.87874538]
[1680704041348,0.02397001,28174.0,28167.0,0.74467056]
[1680704041559,0.02397001,28174.0,28167.0,0.75317056]
[1680704042465,0.02376001,28174.0,28167.0,1.05317056]
[1680704043131,0.0128849,28169.0,28168.0,0.1]
[1680704043376,0.0128849,28169.0,28168.0,2.40114538]
[1680704043589,0.0128849,28169.0,28168.0,2.75008908]
[1680704043809,0.0071849,28169.0,28168.0,2.75008908]
[1680704044441,0.0071849,28169.0,28168.0,0.98108908]
[1680704044664,0.0071849,28169.0,28168.0,0.69908908]
[1680704044878,0.14908171,28169.0,28168.0,0.70981056]
[1680704045086,0.0071849,28169.0,28168.0,0.70981056]
[1680704045299,0.0071849,28169.0,28168.0,0.35471056]
[1680704045516,0.03235036,28169.0,28168.0,0.35471056]
[1680704045736,0.03235036,28169.0,28168.0,0.70981056]
[1680704045981,0.03235036,28169.0,28168.0,0.35471056]
[1680704046197,0.03235036,28169.0,28168.0,0.70981056]
[1680704046424,0.0071849,28169.0,28168.0,0.70981056]
[1680704046630,0.0071849,28169.0,28168.0,1.00981056]
[1680704047046,0.0071849,28169.0,28168.0,1.01831056]
[1680704048588,0.0071849,28169.0,28168.0,0.71831056]
[1680704049017,0.0071849,28169.0,28168.0,0.77082256]
[1680704049230,0.00043811,28169.0,28168.0,0.77082256]
[1680704050331,0.00043811,28169.0,28168.0,1.07082256]
[1680704050775,0.00043811,28169.0,28168.0,1.06232256]
[1680704050987,8.11e-06,28169.0,28168.0,1.06232256]
[1680704051204,8.11e-06,28169.0,28168.0,1.37939256]
[1680704051644,8.11e-06,28169.0,28168.0,0.79739256]
[1680704052066,0.02376001,28174.0,28168.0,0.79739256]
[1680704052067,0.02323562,28174.0,28169.0,0.089742]
[1680704052277,0.02323562,28174.0,28171.0,0.089562]
[1680704052522,0.02323562,28174.0,28172.0,0.44436956]
[1680704052741,5.62e-06,28174.0,28173.0,0.45228656]
[1680704052954,5.62e-06,28174.0,28173.0,0.80738656]
[1680704053171,5.62e-06,28174.0,28173.0,1.61046138]
[1680704053388,5.62e-06,28174.0,28173.0,1.49398967]
[1680704053863,0.02376001,28178.0,28177.0,1.13507]
[1680704053864,5.63e-06,28178.0,28177.0,1.13507]
[1680704054080,5.63e-06,28178.0,28177.0,0.57749438]
[1680704054326,5.63e-06,28178.0,28177.0,2.70159438]
[1680704054555,5.63e-06,28178.0,28177.0,2.85801956]
[1680704054778,5.63e-06,28179.0,28177.0,2.48901956]
[1680704054998,5.63e-06,28179.0,28178.0,0.74995156]
[1680704055232,5.63e-06,28179.0,28178.0,1.10505156]
[1680704056112,0.02150566,28189.0,28180.0,0.03507]
[1680704056331,0.02150566,28189.0,28184.0,0.03507]
[1680704056551,0.02150566,28189.0,28185.0,0.53235538]
[1680704056771,0.02150566,28189.0,28188.0,0.40843456]
[1680704056992,0.02150566,28189.0,28188.0,0.54250938]
[1680704057217,0.02150566,28189.0,28188.0,1.06353456]
[1680704057440,0.02150566,28189.0,28188.0,1.10728456]
[1680704057678,0.02150566,28189.0,28188.0,1.07221456]
[1680704057918,0.02150566,28189.0,28188.0,0.71693456]
[1680704058149,0.02150566,28189.0,28188.0,0.40843456]
[1680704058357,0.0498412,28189.0,28188.0,0.41693456]
[1680704058786,0.0498412,28189.0,28188.0,0.3551]
[1680704059060,0.0498412,28189.0,28188.0,0.03507]
[1680704059282,0.0498412,28189.0,28186.0,0.3551]
[1680704059493,0.0498412,28189.0,28187.0,0.35471056]
[1680704060798,0.42389681,28188.0,28184.0,0.00018]
[1680704061007,0.2818,28185.0,28172.0,0.00018]
[1680704061223,0.14189681,28184.0,28175.0,0.35471056]
[1680704061447,0.14189681,28184.0,28175.0,0.35489056]
[1680704061922,0.15608881,28184.0,28175.0,0.35489056]
[1680704062137,0.14189681,28184.0,28175.0,0.48896538]
[1680704062559,0.64189681,28184.0,28176.0,0.13407482]
[1680704062770,0.64189681,28184.0,28177.0,0.35471056]
[1680704062985,0.64189681,28184.0,28177.0,0.48878538]
[1680704062986,0.70258751,28184.0,28177.0,0.48878538]
[1680704063198,0.65629881,28184.0,28177.0,0.48878538]
[1680704063416,0.00021,28184.0,28178.0,0.48878538]
[1680704064503,0.14210681,28184.0,28178.0,0.48878538]
[1680704064714,0.28201,28185.0,28179.0,0.0085]
[1680704064914,0.28201,28185.0,28180.0,0.35471056]
[1680704065131,0.28201,28185.0,28180.0,0.48878538]
[1680704065355,0.282,28182.0,28178.0,0.00018]
[1680704065596,0.282,28179.0,28174.0,0.13407482]
[1680704065826,0.282,28179.0,28174.0,0.00012]
[1680704066028,0.282,28179.0,28171.0,0.00018]
[1680704066243,0.282,28179.0,28171.0,0.35489056]
[1680704066244,0.24189681,28178.0,28171.0,0.35489056]
[1680704066484,0.282,28176.0,28171.0,0.35489056]
[1680704066723,0.14189681,28175.0,28171.0,0.35489056]
[1680704067571,0.28221,28176.0,28171.0,0.35483056]
[1680704067816,0.42410681,28176.0,28170.0,0.00018]
[1680704068020,0.42389681,28176.0,28170.0,0.35471056]
[1680704068232,0.282,28176.0,28171.0,0.48878538]
[1680704068442,0.02710292,28175.0,28171.0,0.48878538]
[1680704068646,0.02710292,28175.0,28172.0,0.062508]
[1680704068847,0.02710292,28175.0,28174.0,0.051787]
[1680704069058,0.02710292,28175.0,28174.0,0.35471056]
[1680704069282,0.28221,28179.0,28174.0,0.35483056]
[1680704069486,0.28221,28179.0,28175.0,0.35471056]
[1680704069718,0.28221,28179.0,28175.0,0.48878538]
[1680704069919,0.00021,28179.0,28176.0,0.14257482]